fUSD/lending_fUSD_20260527
["ID","MTS","AMOUNT","RATE_DAILY","PERIOD"]
[423075513,1779820241000,-153.0,0.00031585,30]
[423075520,1779820241000,-175.0,0.00031586,30]
[423075521,1779820241000,-156.0,0.00031586,30]
[423075523,1779820241000,-264.0,0.00031586,30]
[423075518,1779820241000,-158.0,0.00031586,30]
[423075515,1779820241000,-153.0,0.00031586,30]
[423075517,1779820241000,-245.0,0.00031586,30]
[423075519,1779820241000,-159.0,0.00031586,30]
[423075522,1779820241000,-151.0,0.00031586,30]
[423075524,1779820241000,-449.42469043,0.00031654,22]
[423075526,1779820241000,-1880.036,0.0003212,31]
[423075528,1779820241000,-5481.71204305,0.00032239,81]
[423075535,1779820241000,-695.39793187,0.00032539,2]
[423075527,1779820241000,-292.4,0.0003221,5]
[423075525,1779820241000,-150.0,0.00031858,2]
[423075531,1779820241000,-150.06269936,0.00032527,2]
[423075530,1779820241000,-17411.04633541,0.00032393,2]
[423075533,1779820241000,-1377.42282658,0.00032539,2]
[423075532,1779820241000,-174.61919141,0.00032539,2]
[423075529,1779820241000,-3931.27794994,0.00032358,2]
[423075577,1779820241000,-264.0,0.00033586,30]
[423075616,1779820241000,-153.0,0.00034585,30]
[423075569,1779820241000,-153.0,0.00033586,30]
[423075600,1779820241000,-151.0,0.00034277,7]
[423075613,1779820241000,-155.55224971,0.00034277,7]
[423075608,1779820241000,-1544.0,0.00034277,7]
[423075609,1779820241000,-1544.0,0.00034277,7]
[423075606,1779820241000,-152.0,0.00034277,7]
[423075605,1779820241000,-152.0,0.00034277,7]
[423075607,1779820241000,-156.22835006,0.00034277,7]
[423075612,1779820241000,-151.0,0.00034277,7]
[423075610,1779820241000,-151.0,0.00034277,7]
[423075611,1779820241000,-151.0,0.00034277,7]
[423075614,1779820241000,-3931.27794994,0.00034539,2]
[423075615,1779820241000,-17411.04633541,0.00034562,2]
[423075624,1779820241000,-156.0,0.00034586,30]
[423075619,1779820241000,-154.0,0.00034586,30]
[423075622,1779820241000,-159.0,0.00034586,30]
[423075617,1779820241000,-158.0,0.00034586,30]
[423075623,1779820241000,-175.0,0.00034586,30]
[423075620,1779820241000,-245.0,0.00034586,30]
[423075621,1779820241000,-158.0,0.00034586,30]
[423075618,1779820241000,-153.0,0.00034586,30]
[423075625,1779820241000,-151.0,0.00034586,30]
[423075627,1779820241000,-201.93286098,0.00034731,2]
[423075626,1779820241000,-264.0,0.00034586,30]
[423075628,1779820241000,-330.0,0.00034745,37]
[423075629,1779820241000,-5000.0,0.000349,2]
[423075630,1779820241000,-151.0,0.00034997,14]
[423075576,1779820241000,-151.0,0.00033586,30]
[423075599,1779820241000,-151.0,0.00034277,7]
[423075592,1779820241000,-1544.0,0.00034277,7]
[423075631,1779820241000,-300.0,0.00034999,10]
[423075602,1779820241000,-151.0,0.00034277,7]
[423075568,1779820241000,-158.0,0.00033586,30]
[423075570,1779820241000,-154.0,0.00033586,30]
[423075566,1779820241000,-153.0,0.00033585,30]
[423075573,1779820241000,-159.0,0.00033586,30]
[423075574,1779820241000,-175.0,0.00033586,30]
[423075572,1779820241000,-158.0,0.00033586,30]
[423075578,1779820241000,-187.78006524,0.00033635,2]
[423075580,1779820241000,-11434.00750446,0.00034,120]
[423075596,1779820241000,-1544.0,0.00034277,7]
[423075590,1779820241000,-1544.0,0.00034277,7]
[423075581,1779820241000,-166.66,0.00034005,2]
[423075582,1779820241000,-519.0,0.00034176,2]
[423075589,1779820241000,-2000.0,0.00034247,30]
[423075579,1779820241000,-509.25323447,0.00033635,2]
[423075588,1779820241000,-502.0,0.00034235,11]
[423075587,1779820241000,-194.72792766,0.00034183,2]
[423075597,1779820241000,-406.82918514,0.00034277,7]
[423075584,1779820241000,-3547.0,0.00034176,2]
[423075594,1779820241000,-1544.0,0.00034277,7]
[423075593,1779820241000,-1544.0,0.00034277,7]
[423075603,1779820241000,-245.0,0.00034277,7]
[423075604,1779820241000,-152.0,0.00034277,7]
[423075595,1779820241000,-1544.0,0.00034277,7]
[423075598,1779820241000,-151.0,0.00034277,7]
[423075591,1779820241000,-1544.0,0.00034277,7]
[423075586,1779820241000,-292.4,0.00034182,7]
[423075585,1779820241000,-1355.0,0.00034176,2]
[423075583,1779820241000,-1225.0,0.00034176,2]
[423075601,1779820241000,-151.0,0.00034277,7]
[423075670,1779820242000,-171.55,0.00035616,120]
[423075684,1779820242000,-292.4,0.00036153,30]
[423075673,1779820242000,-150.06269936,0.00035791,2]
[423075671,1779820242000,-174.94,0.0003567,80]
[423075667,1779820242000,-151.0,0.00035586,30]
[423075661,1779820242000,-158.0,0.00035586,30]
[423075669,1779820242000,-166.26263579,0.00035616,60]
[423075660,1779820242000,-153.0,0.00035586,30]
[423075664,1779820242000,-164.0,0.00035586,30]
[423075668,1779820242000,-264.0,0.00035586,30]
[423075666,1779820242000,-156.0,0.00035586,30]
[423075675,1779820242000,-900.0,0.000359,13]
[423075688,1779820242000,-8938.8522761,0.00036238,2]
[423075672,1779820242000,-502.0,0.00035761,13]
[423075674,1779820242000,-7662.32,0.00035837,2]
[423075685,1779820242000,-174.94,0.0003621,110]
[423075677,1779820242000,-7662.32,0.00035965,2]
[423075678,1779820242000,-15492.3272781,0.00035997,2]
[423075682,1779820242000,-200.0,0.000361,30]
[423075676,1779820242000,-268.0,0.00035914,2]
[423075680,1779820242000,-873.9045256,0.00035997,2]
[423075681,1779820242000,-7662.32,0.00036093,2]
[423075679,1779820242000,-725.1469341,0.00035997,2]
[423075686,1779820242000,-7662.32,0.00036221,2]
[423075687,1779820242000,-856.2527214,0.00036238,2]
[423075665,1779820242000,-175.0,0.00035586,30]
[423075683,1779820242000,-6323.29,0.00036143,2]
[423075662,1779820242000,-245.0,0.00035586,30]
[423075648,1779820242000,-1068.30020172,0.00035248,2]
[423075659,1779820242000,-158.0,0.00035586,30]
[423075690,1779820242000,-178.29,0.00036311,120]
[423075636,1779820242000,-1581.06390646,0.00035,7]
[423075632,1779820242000,-666.0,0.00034999,30]
[423075635,1779820242000,-30323.21872233,0.00035,7]
[423075633,1779820242000,-300.0,0.00034999,10]
[423075634,1779820242000,-290.460399,0.00034999,120]
[423075637,1779820242000,-150.0,0.00035,2]
[423075646,1779820242000,-1068.30020172,0.00035248,2]
[423075638,1779820242000,-150.0,0.00035124,2]
[423075639,1779820242000,-166.66,0.00035128,2]
[423075642,1779820242000,-2000.0,0.00035187,120]
[423075644,1779820242000,-1068.30020172,0.00035248,2]
[423075645,1779820242000,-300.09,0.00035248,2]
[423075641,1779820242000,-15000.8745333,0.00035181,2]
[423075640,1779820242000,-174.94,0.0003513,30]
[423075643,1779820242000,-2000.0,0.000352,7]
[423075658,1779820242000,-153.0,0.00035585,30]
[423075650,1779820242000,-300.0,0.00035248,2]
[423075653,1779820242000,-300.09,0.00035248,2]
[423075649,1779820242000,-300.09,0.00035248,2]
[423075652,1779820242000,-300.0,0.00035248,2]
[423075654,1779820242000,-696.70546771,0.00035278,2]
[423075647,1779820242000,-300.09,0.00035248,2]
[423075651,1779820242000,-356.10006726,0.00035248,2]
[423075656,1779820242000,-5631.98701052,0.00035304,2]
[423075657,1779820242000,-6323.29,0.00035458,2]
[423075655,1779820242000,-225.07760361,0.00035279,2]
[423075663,1779820242000,-158.0,0.00035586,30]
[423075689,1779820242000,-166.66,0.0003625,2]
[423075696,1779820242000,-330.0,0.00036323,40]
[423075691,1779820242000,-101357.97859861,0.00036314,3]
[423075723,1779820242000,-7662.32,0.00036989,2]
[423075721,1779820242000,-150.0,0.0003688,2]
[423075726,1779820242000,-181.517,0.00037,2]
[423075728,1779820242000,-907.36126557,0.00037035,2]
[423075727,1779820242000,-2846.01,0.00037,14]
[423075730,1779820242000,-2439.15542141,0.000371,30]
[423075729,1779820242000,-2439.15542142,0.000371,30]
[423075734,1779820242000,-1224.0,0.00037176,2]
[423075736,1779820242000,-300.0,0.00037197,2]
[423075739,1779820242000,-300.0,0.00037197,2]
[423075735,1779820242000,-1355.0,0.00037176,2]
[423075737,1779820242000,-300.0,0.00037197,2]
[423075740,1779820242000,-300.0,0.00037197,2]
[423075744,1779820242000,-250.0,0.000372,2]
[423075738,1779820242000,-300.0,0.00037197,2]
[423075743,1779820242000,-250.0,0.000372,2]
[423075745,1779820242000,-250.0,0.000372,2]
[423075746,1779820242000,-250.0,0.000372,2]
[423075741,1779820242000,-300.0,0.00037197,2]
[423075742,1779820242000,-311.6,0.00037197,2]
[423075747,1779820242000,-250.0,0.000372,2]
[423075750,1779820242000,-250.0,0.000372,2]
[423075749,1779820242000,-250.0,0.000372,2]
[423075751,1779820242000,-250.0,0.000372,2]
[423075752,1779820242000,-150.0,0.00037211,2]
[423075753,1779820242000,-207.0,0.00037211,2]
[423075695,1779820242000,-389147.62,0.00036314,30]
[423075725,1779820242000,-150.0,0.00037,2]
[423075732,1779820242000,-7662.32,0.00037117,2]
[423075724,1779820242000,-315.0,0.00037,2]
[423075731,1779820242000,-2439.15542141,0.000371,30]
[423075692,1779820242000,-151.0,0.00036314,7]
[423075693,1779820242000,-151.0,0.00036314,7]
[423075694,1779820242000,-210.946382,0.00036314,7]
[423075698,1779820242000,-300.0,0.00036399,10]
[423075697,1779820242000,-7662.32,0.00036349,2]
[423075699,1779820242000,-28050.0,0.000364,30]
[423075700,1779820242000,-2846.01,0.000364,14]
[423075701,1779820242000,-7662.32,0.00036477,2]
[423075703,1779820242000,-7662.32,0.00036605,2]
[423075705,1779820242000,-3931.27794994,0.00036719,2]
[423075704,1779820242000,-2000.0,0.00036712,30]
[423075707,1779820242000,-7662.32,0.00036733,2]
[423075733,1779820242000,-214.81203866,0.00037135,2]
[423075706,1779820242000,-17411.04633541,0.00036731,2]
[423075702,1779820242000,-3133.0,0.000365,7]
[423075712,1779820242000,-1544.0,0.00036836,7]
[423075722,1779820242000,-200.0,0.0003691,30]
[423075718,1779820242000,-200.0,0.00036852,120]
[423075713,1779820242000,-1544.0,0.00036836,7]
[423075708,1779820242000,-174.94,0.0003676,120]
[423075715,1779820242000,-152.0,0.00036836,7]
[423075717,1779820242000,-200.0,0.00036852,120]
[423075716,1779820242000,-321.25806271,0.00036852,120]
[423075710,1779820242000,-6323.3,0.00036828,2]
[423075709,1779820242000,-257.0191111,0.000368,2]
[423075714,1779820242000,-1544.0,0.00036836,7]
[423075719,1779820242000,-195.0,0.00036852,120]
[423075711,1779820242000,-151.0,0.00036836,7]
[423075720,1779820242000,-7662.32,0.00036861,2]
[423075755,1779820243000,-7761.86112084,0.00037219,2]
[423075761,1779820243000,-56837.21070778,0.00037235,2]
[423075759,1779820243000,-151.0,0.00037235,7]
[423075758,1779820243000,-151.0,0.00037235,7]
[423075760,1779820243000,-232926.998676,0.00037235,2]
[423075754,1779820243000,-510.09287479,0.00037213,7]
[423075766,1779820243000,-389.74,0.00037235,2]
[423075765,1779820243000,-70847.99401782,0.00037235,2]
[423075772,1779820243000,-652.49470268,0.00037235,2]
[423075769,1779820243000,-911.04973647,0.00037235,2]
[423075756,1779820243000,-305.88657649,0.00037234,10]
[423075764,1779820243000,-500.0,0.00037235,2]
[423075763,1779820243000,-657.05156622,0.00037235,2]
[423075768,1779820243000,-221.6,0.00027612,30]
[423075777,1779820246000,-1021.19483764,0.00025068,2]
[423075778,1779820246000,-774.00630224,0.00025068,2]
[423075780,1779820246000,-928.0,0.00034176,2]
[423075785,1779820246000,-7525.29429737,0.00037235,2]
[423075776,1779820246000,-1795.20113988,0.00022271,2]
[423075783,1779820246000,-928.0,0.00037176,2]
[423075782,1779820246000,-1707.43630224,0.00035987,10]
[423075786,1779820246000,-5352.67676579,0.00037235,2]
[423075779,1779820246000,-203.76,0.00027586,30]
[423075784,1779820246000,-45005.10920828,0.00037235,2]
[423075781,1779820246000,-731.64369776,0.00035987,10]
[423075789,1779820451000,0.9,0.00015135,2]
[423075790,1779820451000,159.43,0.00015135,2]
[423075791,1779820568000,57.87,7.945e-05,2]
[423075792,1779820568000,7680.628925,7.945e-05,2]
[423075796,1779820623000,250.0,0.00014,2]
[423075797,1779820627000,6934.299522,7.945e-05,2]
[423075798,1779820700000,150.0,0.00014911,2]
[423075800,1779820761000,150.0,0.00014911,2]
[423075801,1779820866000,205.88000508,0.00028082,120]
[423075949,1779821277000,320.12,0.0001384,2]
[423075950,1779821278000,320.12,0.00014568,2]
[423075951,1779821365000,-1875.460478,0.00015219,2]
[423075952,1779821380000,-10000.0,0.00015219,2]
[423075953,1779821408000,3063.019898,7.945e-05,2]
[423075954,1779821428000,150.0,0.00014688,2]
[423075983,1779821431000,-435.00791798,0.00019375,2]
[423075981,1779821431000,-500.0,0.00019374,2]
[423075980,1779821431000,-500.0,0.00019374,2]
[423075979,1779821431000,-435.00791798,0.00019341,2]
[423075977,1779821431000,-435.00791798,0.00019308,2]
[423075978,1779821431000,-3699.87057472,0.00019337,2]
[423075975,1779821431000,-320.12,0.00018939,2]
[423075974,1779821431000,-218.5,0.0001841,2]
[423075976,1779821431000,-435.00791801,0.00019274,2]
[423075973,1779821431000,-320.12,0.0001821,2]
[423075971,1779821431000,-1399.0,0.0001788,2]
[423075972,1779821431000,-160.33,0.00018161,2]
[423075969,1779821431000,-320.12,0.00016753,2]
[423075968,1779821431000,-200.37581405,0.00016657,2]
[423075967,1779821431000,-160.33,0.00016648,2]
[423075966,1779821431000,-218.5,0.00016438,2]
[423075964,1779821431000,-320.12,0.00016025,2]
[423075965,1779821431000,-349.905,0.00016338,2]
[423075962,1779821431000,-150.0,0.0001552,2]
[423075963,1779821431000,-300.0,0.00016,2]
[423075961,1779821431000,-320.12,0.00015296,2]
[423075959,1779821431000,-1029.43881149,0.00015142,2]
[423075960,1779821431000,-920.709481,0.00015142,2]
[423075958,1779821431000,-2108.14495183,0.00015142,2]
[423075988,1779821431000,-500.0,0.00019573,2]
[423075970,1779821431000,-320.12,0.00017482,2]
[423075986,1779821431000,-500.0,0.00019573,2]
[423076007,1779821431000,-163.12,0.00021683,2]
[423075982,1779821431000,-239.76,0.00019374,2]
[423075984,1779821431000,-195.76151936,0.00019475,2]
[423076029,1779821431000,-151.0,0.000225,2]
[423076026,1779821431000,-151.0,0.000225,2]
[423076021,1779821431000,-151.0,0.000225,2]
[423076022,1779821431000,-151.0,0.000225,2]
[423076023,1779821431000,-151.0,0.000225,2]
[423076020,1779821431000,-2071.96,0.00022466,2]
[423076019,1779821431000,-2069.79,0.00022466,2]
[423076017,1779821431000,-218.5,0.00022353,2]
[423076015,1779821431000,-500.0,0.000219,2]
[423076009,1779821431000,-320.12,0.00021852,2]
[423076033,1779821431000,-151.0,0.000225,2]
[423076031,1779821431000,-151.0,0.000225,2]
[423076005,1779821431000,-75.62307398,0.0002124,2]
[423075990,1779821431000,-500.0,0.00019573,2]
[423075985,1779821431000,-500.0,0.00019573,2]
[423075987,1779821431000,-472.4,0.00019573,2]
[423076003,1779821431000,-3530.04692602,0.0002124,2]
[423075993,1779821431000,-474.62307338,0.00019573,2]
[423075991,1779821431000,-500.0,0.00019573,2]
[423075998,1779821431000,-320.12,0.00020395,2]
[423075996,1779821431000,-160.33,0.00019675,2]
[423075997,1779821431000,-218.5,0.00020381,2]
[423075999,1779821431000,-320.12,0.00021124,2]
[423076001,1779821431000,-160.33,0.00021188,2]
[423075995,1779821431000,-320.12,0.00019667,2]
[423076094,1779821432000,-320.12,0.00026951,2]
[423076096,1779821432000,-1000.0,0.00027102,2]
[423076093,1779821432000,-5000.0,0.00026413,2]
[423076092,1779821432000,-218.5,0.00026296,2]
[423076088,1779821432000,-1000.0,0.000256,2]
[423076091,1779821432000,-320.12,0.00026223,2]
[423076089,1779821432000,-160.33,0.00025729,2]
[423076090,1779821432000,-2990.65,0.00026124,7]
[423076098,1779821432000,-1500.0,0.00027397,2]
[423076095,1779821432000,-502.0,0.00027044,4]
[423076101,1779821432000,-2527.57,0.00027752,7]
[423076104,1779821432000,-218.5,0.00028267,2]
[423076097,1779821432000,-160.33,0.00027242,2]
[423076099,1779821432000,-150.0,0.00027521,2]
[423076103,1779821432000,-187.9,0.00027956,30]
[423076102,1779821432000,-186.93,0.00027929,30]
[423076105,1779821432000,-160.33,0.00028756,2]
[423076108,1779821432000,-2671.37,0.0002899,10]
[423076106,1779821432000,-150.0,0.00028897,2]
[423076107,1779821432000,-2226.14,0.0002898,10]
[423076111,1779821432000,-655.79,0.00029,2]
[423076085,1779821432000,-509.0,0.00025082,2]
[423076100,1779821432000,-320.12,0.00027679,2]
[423076086,1779821432000,-189.05,0.00025492,2]
[423076056,1779821432000,-151.0,0.000225,2]
[423076083,1779821432000,-502.0,0.00025082,2]
[423076035,1779821432000,-151.0,0.000225,2]
[423076040,1779821432000,-151.0,0.000225,2]
[423076037,1779821432000,-151.0,0.000225,2]
[423076042,1779821432000,-151.0,0.000225,2]
[423076052,1779821432000,-151.0,0.000225,2]
[423076055,1779821432000,-151.0,0.000225,2]
[423076044,1779821432000,-151.0,0.000225,2]
[423076046,1779821432000,-151.0,0.000225,2]
[423076048,1779821432000,-151.0,0.000225,2]
[423076050,1779821432000,-151.0,0.000225,2]
[423076059,1779821432000,-151.0,0.000225,2]
[423076110,1779821432000,-655.79,0.00029,2]
[423076061,1779821432000,-151.0,0.000225,2]
[423076063,1779821432000,-320.12,0.00022581,2]
[423076065,1779821432000,-160.33,0.00022702,2]
[423076069,1779821432000,-320.12,0.00023309,2]
[423076077,1779821432000,-3146.56,0.00024496,7]
[423076067,1779821432000,-3196.28,0.00022868,2]
[423076079,1779821432000,-194.21,0.00024658,2]
[423076071,1779821432000,-320.12,0.00024037,2]
[423076073,1779821432000,-160.33,0.00024215,2]
[423076081,1779821432000,-320.12,0.00024766,2]
[423076075,1779821432000,-218.5,0.00024324,2]
[423076087,1779821432000,-320.12,0.00025494,2]
[423076114,1779821432000,-1378.83,0.00029,2]
[423076109,1779821432000,-655.79,0.00029,2]
[423076113,1779821432000,-150.0,0.00029,2]
[423076140,1779821432000,-502.0,0.00030966,8]
[423076146,1779821432000,-150.0,0.00031858,2]
[423076144,1779821432000,-154.0,0.00031578,30]
[423076147,1779821432000,-200.0,0.00032055,2]
[423076145,1779821432000,-150.0,0.00031733,7]
[423076142,1779821432000,-200.0,0.00031096,2]
[423076149,1779821432000,-218.5,0.0003221,5]
[423076148,1779821432000,-1715.375,0.00032102,31]
[423076151,1779821432000,-150.0,0.000323,7]
[423076150,1779821432000,-150.0,0.000323,7]
[423076153,1779821432000,-150.0,0.000323,7]
[423076141,1779821432000,-963.58,0.00031008,7]
[423076152,1779821432000,-150.0,0.000323,7]
[423076156,1779821432000,-571.56,0.00032636,30]
[423076159,1779821432000,-443.25031741,0.00032876,30]
[423076112,1779821432000,-655.8,0.00029,2]
[423076154,1779821432000,-163.12,0.00032524,2]
[423076157,1779821432000,-150.0,0.00032867,7]
[423076161,1779821432000,-1000.0,0.00032876,30]
[423076162,1779821432000,-1000.0,0.00032876,30]
[423076164,1779821432000,-1000.0,0.00032876,30]
[423076160,1779821432000,-1000.0,0.00032876,30]
[423076163,1779821432000,-1000.0,0.00032876,30]
[423076165,1779821432000,-526.18766811,0.00032876,30]
[423076158,1779821432000,-556.74968259,0.00032876,30]
[423076143,1779821432000,-150.0,0.00031167,7]
[423076155,1779821432000,-154.0,0.00032578,30]
[423076139,1779821432000,-300.39542483,0.00030935,5]
[423076138,1779821432000,-172.80446262,0.00030935,5]
[423076120,1779821432000,-155.0,0.00029574,30]
[423076118,1779821432000,-366.39,0.00029548,120]
[423076115,1779821432000,-502.0,0.00029005,6]
[423076117,1779821432000,-1664.28,0.0002938,7]
[423076116,1779821432000,-1500.0,0.000293,7]
[423076121,1779821432000,-154.0,0.00029578,30]
[423076119,1779821432000,-162.0,0.00029572,30]
[423076122,1779821432000,-154.0,0.00029578,30]
[423076124,1779821432000,-200.0,0.00030137,2]
[423076125,1779821432000,-231.26,0.00030137,2]
[423076123,1779821432000,-5530.0,0.000297,5]
[423076127,1779821432000,-160.33,0.00030269,2]
[423076137,1779821432000,-150.0,0.000306,7]
[423076135,1779821432000,-208.03821619,0.000306,7]
[423076126,1779821432000,-218.5,0.00030239,2]
[423076134,1779821432000,-150.0,0.000306,7]
[423076133,1779821432000,-150.0,0.000306,7]
[423076136,1779821432000,-150.0,0.000306,7]
[423076131,1779821432000,-150.0,0.000306,7]
[423076129,1779821432000,-163.0,0.00030574,30]
[423076130,1779821432000,-154.0,0.00030578,30]
[423076128,1779821432000,-150.0,0.00030341,2]
[423076132,1779821432000,-150.0,0.000306,7]
[423076171,1779821437000,-194.58,0.00024658,2]
[423076172,1779821437000,-177.59738452,0.0002897,10]
[423076193,1779821438000,-154.0,0.00033578,30]
[423076196,1779821438000,-392.98,0.00033699,30]
[423076191,1779821438000,-150.0,0.00033451,2]
[423076194,1779821438000,-508.44957983,0.00033674,2]
[423076192,1779821438000,-508.44957983,0.00033517,2]
[423076199,1779821438000,-508.44957983,0.00033715,2]
[423076197,1779821438000,-3400.0,0.000337,12]
[423076204,1779821438000,-3555.81,0.00033799,2]
[423076200,1779821438000,-508.44957983,0.00033716,2]
[423076201,1779821438000,-508.44957983,0.00033727,2]
[423076202,1779821438000,-12458.1217,0.00033798,2]
[423076203,1779821438000,-3890.2448,0.00033798,2]
[423076206,1779821438000,-1741.10463355,0.000338,2]
[423076190,1779821438000,-222.0239102,0.00033439,14]
[423076198,1779821438000,-508.44957983,0.00033709,2]
[423076189,1779821438000,-150.0,0.00033433,7]
[423076176,1779821438000,-473.81233189,0.00032876,30]
[423076187,1779821438000,-508.44957983,0.00033353,2]
[423076207,1779821438000,-1122.00071246,0.000338,2]
[423076173,1779821438000,-1677.52261548,0.0002897,10]
[423076175,1779821438000,-156.0,0.00030574,30]
[423076174,1779821438000,-156.0,0.00029574,30]
[423076177,1779821438000,-1000.0,0.00032876,30]
[423076178,1779821438000,-1000.0,0.00032876,30]
[423076188,1779821438000,-508.44957983,0.00033427,2]
[423076186,1779821438000,-508.44957983,0.00033297,2]
[423076179,1779821438000,-1000.0,0.00032876,30]
[423076181,1779821438000,-502.0,0.00032928,10]
[423076182,1779821438000,-2000.0,0.00033,7]
[423076180,1779821438000,-912.5160286,0.00032876,30]
[423076183,1779821438000,-350.0,0.00033014,5]
[423076184,1779821438000,-508.44957983,0.00033232,2]
[423076185,1779821438000,-508.44957983,0.0003327,2]
[423076208,1779821438000,-1023.39749292,0.000338,2]
[423076195,1779821438000,-508.44957983,0.00033679,2]
[423076209,1779821438000,-1000.0,0.00033888,2]
[423076226,1779821438000,-500.0,0.00033999,120]
[423076231,1779821438000,-500.0,0.00033999,30]
[423076228,1779821438000,-500.0,0.00033999,30]
[423076232,1779821438000,-500.0,0.00033999,30]
[423076225,1779821438000,-500.0,0.00033999,120]
[423076234,1779821438000,-500.0,0.00033999,30]
[423076236,1779821438000,-513.37631331,0.00033999,120]
[423076235,1779821438000,-500.0,0.00033999,30]
[423076237,1779821438000,-418.0,0.00033999,2]
[423076242,1779821438000,-1277.8660776,0.00034,2]
[423076241,1779821438000,-1993.62764173,0.00034,2]
[423076243,1779821438000,-431.37263713,0.00034,2]
[423076240,1779821438000,-54061.73688572,0.00034,2]
[423076239,1779821438000,-515.0,0.00034,5]
[423076205,1779821438000,-6800.0,0.000338,12]
[423076233,1779821438000,-500.0,0.00033999,30]
[423076229,1779821438000,-500.0,0.00033999,30]
[423076230,1779821438000,-500.0,0.00033999,30]
[423076224,1779821438000,-500.0,0.00033999,120]
[423076210,1779821438000,-500.0,0.00033898,120]
[423076211,1779821438000,-500.0,0.00033898,30]
[423076216,1779821438000,-366.39,0.00033986,120]
[423076212,1779821438000,-500.0,0.00033898,120]
[423076227,1779821438000,-500.0,0.00033999,120]
[423076214,1779821438000,-5000.0,0.000339,2]
[423076217,1779821438000,-208.52332663,0.0003399,2]
[423076215,1779821438000,-10200.0,0.000339,12]
[423076213,1779821438000,-227944.3712,0.00033899,2]
[423076220,1779821438000,-450.781,0.00033999,2]
[423076218,1779821438000,-926.0,0.00033999,2]
[423076219,1779821438000,-1272.0,0.00033999,2]
[423076221,1779821438000,-500.0,0.00033999,120]
[423076223,1779821438000,-500.0,0.00033999,120]
[423076222,1779821438000,-500.0,0.00033999,120]
[423076238,1779821438000,-931.0,0.00033999,2]
[423076249,1779821439000,-272.5845,0.00034,2]
[423076247,1779821439000,-397.81100908,0.00034,2]
[423076248,1779821439000,-279.11073028,0.00034,2]
[423076246,1779821439000,-2499.2819,0.00034,2]
[423076244,1779821439000,-156.0,0.00031574,30]
[423076245,1779821439000,-156.0,0.00032574,30]
[423076250,1779821440000,-10016.83030078,0.00034,2]
[423076252,1779821440000,-3691.37040285,0.00034,2]
[423076254,1779821440000,-920.709481,0.00034,2]
[423076253,1779821440000,-4416.33433234,0.00034,2]
[423076251,1779821440000,-25398.5181277,0.00034,2]
[423076273,1779821442000,-345906.47679425,0.00034,2]
[423076271,1779821442000,-3417.6439804,0.00033713,2]
[423076270,1779821442000,-156.0,0.00033574,30]
[423076272,1779821442000,-94342.84597479,0.00034,2]
[423076274,1779821443000,-1139.1341121,0.00034,2]
[423076279,1779821445000,-4742.27762094,0.00033999,2]
[423076278,1779821445000,-1545.93,0.0003399,10]
[423076281,1779821445000,-10088.07756094,0.00034,2]
[423076280,1779821445000,-1319.72237906,0.00033999,2]
[423076282,1779821446000,-150.06269936,0.000339,2]
[423076283,1779821446000,-3042.55963137,0.00034,2]
[423076285,1779821732000,-150.0,0.00021534,2]